[Event "Titled Tuesday Blitz December 13 Early 2022"]
[White "Koellner, Ruben Gideon"]
[Black "Ozen, Bahadir"]
[WhiteFideId "12993093"]
[BlackFideId "6337058"]
[WhiteElo "2655"]
[BlackElo "2844"]
[Result "1/2-1/2"]
[Round "07"]
[TimeControl "180+1"]
[Date "2022.12.14"]
[WhiteClock "0:01:25"]
[BlackClock "0:01:13"]

1. d4 {[%clk 0:03:00]}  d6 {[%clk 0:03:00]} 2. Nf3 {[%clk 0:03:00]}  Nf6 {[%clk 0:03:00]} 3. Nbd2 {[%clk 0:03:00]}  Nbd7 {[%clk 0:03:00]} 4. e4 {[%clk 0:03:00]}  e5 {[%clk 0:03:01]} 5. dxe5 {[%clk 0:03:01]}  dxe5 {[%clk 0:03:01]} 6. Bc4 {[%clk 0:03:01]}  Be7 {[%clk 0:03:01]} 7. O-O {[%clk 0:03:01]}  O-O {[%clk 0:03:01]} 8. c3 {[%clk 0:03:02]}  c6 {[%clk 0:03:01]} 9. a4 {[%clk 0:03:02]}  Rb8 {[%clk 0:02:51]} 10. Qe2 {[%clk 0:03:02]}  Qc7 {[%clk 0:02:50]} 11. b4 {[%clk 0:03:01]}  b5 {[%clk 0:02:40]} 12. axb5 {[%clk 0:02:52]}  cxb5 {[%clk 0:02:40]} 13. Bxb5 {[%clk 0:02:53]}  Qxc3 {[%clk 0:02:37]} 14. Rxa7 {[%clk 0:02:53]}  Rb7 {[%clk 0:01:57]} 15. Ra8 {[%clk 0:02:38]}  Qxb4 {[%clk 0:01:48]} 16. Ba3 {[%clk 0:02:27]}  Qxb5 {[%clk 0:01:48]} 17. Qxb5 {[%clk 0:02:26]}  Rxb5 {[%clk 0:01:49]} 18. Bxe7 {[%clk 0:02:26]}  Re8 {[%clk 0:01:49]} 19. Bxf6 {[%clk 0:02:13]}  Nxf6 {[%clk 0:01:49]} 20. Nc4 {[%clk 0:02:09]}  Bb7 {[%clk 0:01:37]} 21. Rxe8+ {[%clk 0:01:54]}  Nxe8 {[%clk 0:01:38]} 22. Re1 {[%clk 0:01:54]}  f6 {[%clk 0:01:36]} 23. Nfd2 {[%clk 0:01:53]}  Rb4 {[%clk 0:01:27]} 24. f3 {[%clk 0:01:50]}  Kf7 {[%clk 0:01:27]} 25. Rb1 {[%clk 0:01:48]}  Rxb1+ {[%clk 0:01:25]} 26. Nxb1 {[%clk 0:01:49]}  Ke6 {[%clk 0:01:24]} 27. Kf2 {[%clk 0:01:48]}  Nd6 {[%clk 0:01:25]} 28. Nxd6 {[%clk 0:01:49]}  Kxd6 {[%clk 0:01:26]} 29. Ke3 {[%clk 0:01:49]}  Kc5 {[%clk 0:01:25]} 30. Nd2 {[%clk 0:01:47]}  Bc6 {[%clk 0:01:25]} 31. g3 {[%clk 0:01:45]}  g5 {[%clk 0:01:24]} 32. f4 {[%clk 0:01:44]}  gxf4+ {[%clk 0:01:23]} 33. gxf4 {[%clk 0:01:45]}  exf4+ {[%clk 0:01:24]} 34. Kxf4 {[%clk 0:01:46]}  Kd6 {[%clk 0:01:24]} 35. Nf3 {[%clk 0:01:44]}  Bd7 {[%clk 0:01:20]} 36. Ne1 {[%clk 0:01:37]}  Ke7 {[%clk 0:01:19]} 37. Nc2 {[%clk 0:01:36]}  Kf7 {[%clk 0:01:17]} 38. Ne3 {[%clk 0:01:36]}  Kg6 {[%clk 0:01:16]} 39. Nd5 {[%clk 0:01:34]}  Be6 {[%clk 0:01:16]} 40. Ne7+ {[%clk 0:01:34]}  Kf7 {[%clk 0:01:16]} 41. Nc6 {[%clk 0:01:34]}  Bd7 {[%clk 0:01:16]} 42. Nd4 {[%clk 0:01:33]}  Kg6 {[%clk 0:01:16]} 43. Nf3 {[%clk 0:01:31]}  Kh5 {[%clk 0:01:16]} 44. e5 {[%clk 0:01:26]}  fxe5+ {[%clk 0:01:15]} 45. Nxe5 {[%clk 0:01:27]}  Bc8 {[%clk 0:01:13]} 46. Kg3 {[%clk 0:01:25]} 1/2-1/2


[Site "https://www.chess.com"]

[Event "Titled Tuesday Blitz December 13 Early 2022"]
[White "Kopylov, Alexander A."]
[Black "Hirneise, Jens"]
[WhiteFideId "4164857"]
[BlackFideId "24614734"]
[WhiteElo "2436"]
[BlackElo "2345"]
[Result "1-0"]
[Round "07"]
[TimeControl "180+1"]
[Date "2022.12.13"]
[WhiteClock "0:00:22"]
[BlackClock "0:00:02"]

1. e4 {[%clk 0:02:58]}  c5 {[%clk 0:03:00]} 2. Nf3 {[%clk 0:02:56]}  d6 {[%clk 0:03:00]} 3. Bb5+ {[%clk 0:02:54]}  Nd7 {[%clk 0:02:59]} 4. O-O {[%clk 0:02:54]}  a6 {[%clk 0:02:57]} 5. Bxd7+ {[%clk 0:02:54]}  Bxd7 {[%clk 0:02:56]} 6. h3 {[%clk 0:02:55]}  Nf6 {[%clk 0:02:48]} 7. e5 {[%clk 0:02:54]}  dxe5 {[%clk 0:02:48]} 8. Nxe5 {[%clk 0:02:55]}  e6 {[%clk 0:02:49]} 9. d4 {[%clk 0:02:54]}  cxd4 {[%clk 0:02:41]} 10. Qxd4 {[%clk 0:02:55]}  Bc6 {[%clk 0:02:41]} 11. Nxc6 {[%clk 0:02:52]}  bxc6 {[%clk 0:02:40]} 12. Qa4 {[%clk 0:02:51]}  Qb6 {[%clk 0:02:39]} 13. Be3 {[%clk 0:02:46]}  Bc5 {[%clk 0:02:37]} 14. Bxc5 {[%clk 0:02:46]}  Qxc5 {[%clk 0:02:37]} 15. Nd2 {[%clk 0:02:41]}  O-O {[%clk 0:02:37]} 16. c3 {[%clk 0:02:40]}  Rfd8 {[%clk 0:02:31]} 17. Nb3 {[%clk 0:02:33]}  Qb5 {[%clk 0:02:19]} 18. Qa5 {[%clk 0:02:27]}  Rd5 {[%clk 0:02:13]} 19. Qc7 {[%clk 0:02:15]}  Rd7 {[%clk 0:01:59]} 20. Qf4 {[%clk 0:02:08]}  e5 {[%clk 0:01:54]} 21. Qc1 {[%clk 0:02:01]}  Rad8 {[%clk 0:01:52]} 22. Qc2 {[%clk 0:01:54]}  Nh5 {[%clk 0:01:43]} 23. g3 {[%clk 0:01:44]}  Rd3 {[%clk 0:01:20]} 24. Rad1 {[%clk 0:01:36]}  e4 {[%clk 0:01:05]} 25. Nd4 {[%clk 0:01:33]}  Qc4 {[%clk 0:01:02]} 26. b3 {[%clk 0:01:09]}  Qxc3 {[%clk 0:00:58]} 27. Qxc3 {[%clk 0:01:08]}  Rxc3 {[%clk 0:00:59]} 28. Nxc6 {[%clk 0:01:08]}  Rxd1 {[%clk 0:00:54]} 29. Rxd1 {[%clk 0:01:09]}  g6 {[%clk 0:00:51]} 30. Nb4 {[%clk 0:00:52]}  a5 {[%clk 0:00:39]} 31. Nd5 {[%clk 0:00:52]}  Rc2 {[%clk 0:00:39]} 32. a4 {[%clk 0:00:52]}  Kg7 {[%clk 0:00:35]} 33. g4 {[%clk 0:00:50]}  Nf6 {[%clk 0:00:35]} 34. Nxf6 {[%clk 0:00:36]}  Kxf6 {[%clk 0:00:36]} 35. Rd5 {[%clk 0:00:33]}  Rc3 {[%clk 0:00:31]} 36. Kg2 {[%clk 0:00:31]}  Rxb3 {[%clk 0:00:30]} 37. Rxa5 {[%clk 0:00:32]}  e3 {[%clk 0:00:27]} 38. fxe3 {[%clk 0:00:29]}  Rxe3 {[%clk 0:00:28]} 39. g5+ {[%clk 0:00:28]}  Ke6 {[%clk 0:00:28]} 40. h4 {[%clk 0:00:28]}  Ra3 {[%clk 0:00:27]} 41. Ra7 {[%clk 0:00:26]}  Rb3 {[%clk 0:00:17]} 42. a5 {[%clk 0:00:26]}  Rb4 {[%clk 0:00:17]} 43. Kg3 {[%clk 0:00:26]}  Rb3+ {[%clk 0:00:18]} 44. Kf4 {[%clk 0:00:26]}  Rb4+ {[%clk 0:00:19]} 45. Kg3 {[%clk 0:00:27]}  Rb3+ {[%clk 0:00:19]} 46. Kf2 {[%clk 0:00:27]}  Rb4 {[%clk 0:00:20]} 47. a6 {[%clk 0:00:24]}  Rxh4 {[%clk 0:00:20]} 48. Rb7 {[%clk 0:00:23]}  Ra4 {[%clk 0:00:20]} 49. a7 {[%clk 0:00:24]}  Kf5 {[%clk 0:00:19]} 50. Rxf7+ {[%clk 0:00:23]}  Kxg5 {[%clk 0:00:20]} 51. Rxh7 {[%clk 0:00:24]}  Kf5 {[%clk 0:00:20]} 52. Rf7+ {[%clk 0:00:23]}  Kg5 {[%clk 0:00:20]} 53. Ke3 {[%clk 0:00:23]}  Ra6 {[%clk 0:00:13]} 54. Kd4 {[%clk 0:00:22]}  Kg4 {[%clk 0:00:14]} 55. Kc5 {[%clk 0:00:23]}  g5 {[%clk 0:00:14]} 56. Kb5 {[%clk 0:00:23]}  Ra1 {[%clk 0:00:14]} 57. Kb6 {[%clk 0:00:23]}  Kg3 {[%clk 0:00:14]} 58. Rf5 {[%clk 0:00:22]}  g4 {[%clk 0:00:14]} 59. Ra5 {[%clk 0:00:22]}  Rb1+ {[%clk 0:00:02]} 60. Ka6 {[%clk 0:00:22]} 1-0


[Site "https://www.chess.com"]

[Event "Titled Tuesday Blitz December 13 Early 2022"]
[White "Kuchava, Ana"]
[Black "Osiecki, Stanislaw"]
[WhiteFideId "13605348"]
[BlackFideId "1102990"]
[WhiteElo "2001"]
[BlackElo "2088"]
[Result "0-1"]
[Round "07"]
[TimeControl "180+1"]
[Date "2022.12.14"]
[WhiteClock "0:00:01"]
[BlackClock "0:00:12"]

1. d4 {[%clk 0:03:00]}  Nf6 {[%clk 0:02:52]} 2. Nf3 {[%clk 0:02:57]}  g6 {[%clk 0:02:48]} 3. c4 {[%clk 0:02:55]}  Bg7 {[%clk 0:02:49]} 4. Nc3 {[%clk 0:02:55]}  d6 {[%clk 0:02:49]} 5. e4 {[%clk 0:02:52]}  O-O {[%clk 0:02:50]} 6. Be2 {[%clk 0:02:52]}  e5 {[%clk 0:02:49]} 7. O-O {[%clk 0:02:49]}  Nbd7 {[%clk 0:02:48]} 8. Re1 {[%clk 0:02:44]}  exd4 {[%clk 0:02:46]} 9. Nxd4 {[%clk 0:02:41]}  Nc5 {[%clk 0:02:47]} 10. Bf1 {[%clk 0:02:39]}  Re8 {[%clk 0:02:45]} 11. f3 {[%clk 0:02:33]}  a5 {[%clk 0:02:45]} 12. Be3 {[%clk 0:02:26]}  Bd7 {[%clk 0:02:45]} 13. Qd2 {[%clk 0:02:26]}  a4 {[%clk 0:02:43]} 14. Rad1 {[%clk 0:02:24]}  Qe7 {[%clk 0:02:32]} 15. Nd5 {[%clk 0:02:15]}  Nxd5 {[%clk 0:02:31]} 16. exd5 {[%clk 0:02:07]}  Qd8 {[%clk 0:02:22]} 17. Kh1 {[%clk 0:01:54]}  Qf6 {[%clk 0:01:56]} 18. b4 {[%clk 0:01:40]}  axb3 {[%clk 0:01:54]} 19. axb3 {[%clk 0:01:41]}  Ra3 {[%clk 0:01:40]} 20. b4 {[%clk 0:01:27]}  Rexe3 {[%clk 0:01:13]} 21. Rxe3 {[%clk 0:01:25]}  Bh6 {[%clk 0:01:12]} 22. Rxa3 {[%clk 0:00:51]}  Bxd2 {[%clk 0:01:11]} 23. Rxd2 {[%clk 0:00:52]}  Na6 {[%clk 0:01:01]} 24. Nc2 {[%clk 0:00:29]}  h5 {[%clk 0:00:57]} 25. Kg1 {[%clk 0:00:16]}  h4 {[%clk 0:00:56]} 26. Re3 {[%clk 0:00:14]}  Qg5 {[%clk 0:00:54]} 27. Rde2 {[%clk 0:00:13]}  h3 {[%clk 0:00:48]} 28. g3 {[%clk 0:00:12]}  Bf5 {[%clk 0:00:44]} 29. Nd4 {[%clk 0:00:11]}  Nxb4 {[%clk 0:00:38]} 30. f4 {[%clk 0:00:09]}  Qf6 {[%clk 0:00:32]} 31. Nxf5 {[%clk 0:00:09]}  Qxf5 {[%clk 0:00:30]} 32. Rb3 {[%clk 0:00:07]}  Na6 {[%clk 0:00:20]} 33. Rxb7 {[%clk 0:00:06]}  Qf6 {[%clk 0:00:18]} 34. Rbb2 {[%clk 0:00:06]}  Qd4+ {[%clk 0:00:18]} 35. Rf2 {[%clk 0:00:03]}  Nc5 {[%clk 0:00:17]} 36. Bxh3 {[%clk 0:00:03]}  Ne4 {[%clk 0:00:16]} 37. Kg2 {[%clk 0:00:01]}  Nxf2 {[%clk 0:00:16]} 38. Rxf2 {[%clk 0:00:02]}  Qxc4 {[%clk 0:00:16]} 39. Bd7 {[%clk 0:00:02]}  Qxd5+ {[%clk 0:00:15]} 40. Kg1 {[%clk 0:00:02]}  c5 {[%clk 0:00:15]} 41. f5 {[%clk 0:00:01]}  gxf5 {[%clk 0:00:13]} 42. Bxf5 {[%clk 0:00:02]}  Qd4 {[%clk 0:00:13]} 43. Kg2 {[%clk 0:00:01]}  c4 {[%clk 0:00:12]} 0-1


[Site "https://www.chess.com"]

[Event "Titled Tuesday Blitz December 13 Early 2022"]
[White "Kulkarni, Vikramaditya"]
[Black "Levine, David"]
[WhiteFideId "5009847"]
[BlackFideId "2011611"]
[WhiteElo "2273"]
[BlackElo "2136"]
[Result "0-1"]
[Round "07"]
[TimeControl "180+1"]
[Date "2022.12.14"]
[WhiteClock "0:01:24"]
[BlackClock "0:01:03"]

1. c4 {[%clk 0:02:57]}  Nf6 {[%clk 0:02:56]} 2. Nc3 {[%clk 0:02:56]}  g6 {[%clk 0:02:55]} 3. e4 {[%clk 0:02:55]}  d6 {[%clk 0:02:55]} 4. d4 {[%clk 0:02:55]}  Bg7 {[%clk 0:02:55]} 5. Nf3 {[%clk 0:02:55]}  O-O {[%clk 0:02:55]} 6. h3 {[%clk 0:02:55]}  e5 {[%clk 0:02:52]} 7. dxe5 {[%clk 0:02:55]}  dxe5 {[%clk 0:02:51]} 8. Qxd8 {[%clk 0:02:55]}  Rxd8 {[%clk 0:02:51]} 9. Nd5 {[%clk 0:02:55]}  Nxd5 {[%clk 0:02:38]} 10. cxd5 {[%clk 0:02:56]}  c6 {[%clk 0:02:38]} 11. Bc4 {[%clk 0:02:55]}  b5 {[%clk 0:02:33]} 12. Bb3 {[%clk 0:02:55]}  c5 {[%clk 0:02:33]} 13. a4 {[%clk 0:02:48]}  Ba6 {[%clk 0:02:23]} 14. Bg5 {[%clk 0:02:41]}  f6 {[%clk 0:02:05]} 15. d6+ {[%clk 0:02:27]}  c4 {[%clk 0:02:04]} 16. axb5 {[%clk 0:02:25]}  Bxb5 {[%clk 0:02:04]} 17. Ra5 {[%clk 0:02:20]}  cxb3 {[%clk 0:02:00]} 18. Rxb5 {[%clk 0:02:19]}  fxg5 {[%clk 0:01:59]} 19. Nxg5 {[%clk 0:02:19]}  Rxd6 {[%clk 0:01:57]} 20. Ke2 {[%clk 0:02:18]}  Nd7 {[%clk 0:01:53]} 21. Rc1 {[%clk 0:02:16]}  Bh6 {[%clk 0:01:43]} 22. h4 {[%clk 0:02:14]}  Bxg5 {[%clk 0:01:42]} 23. hxg5 {[%clk 0:02:13]}  Nb6 {[%clk 0:01:39]} 24. Rc7 {[%clk 0:02:12]}  Rd7 {[%clk 0:01:27]} 25. Rxd7 {[%clk 0:02:07]}  Nxd7 {[%clk 0:01:27]} 26. Rxb3 {[%clk 0:02:07]}  Kf7 {[%clk 0:01:25]} 27. Rf3+ {[%clk 0:02:02]}  Ke7 {[%clk 0:01:23]} 28. Rh3 {[%clk 0:02:03]}  Rh8 {[%clk 0:01:22]} 29. Ra3 {[%clk 0:02:02]}  Ra8 {[%clk 0:01:21]} 30. Rh3 {[%clk 0:02:01]}  Nf8 {[%clk 0:01:21]} 31. Rb3 {[%clk 0:02:00]}  Rd8 {[%clk 0:01:09]} 32. Rb5 {[%clk 0:01:58]}  Ke6 {[%clk 0:01:08]} 33. Ra5 {[%clk 0:01:56]}  Rd7 {[%clk 0:01:07]} 34. g3 {[%clk 0:01:54]}  Rb7 {[%clk 0:01:07]} 35. b3 {[%clk 0:01:47]}  Nd7 {[%clk 0:01:06]} 36. Ra3 {[%clk 0:01:38]}  Nc5 {[%clk 0:01:03]} 37. f3 {[%clk 0:01:24]}  Nxb3 {[%clk 0:01:03]} 0-1


[Site "https://www.chess.com"]

[Event "Titled Tuesday Blitz December 13 Early 2022"]
[White "Lacasa Diaz, Jose Antonio"]
[Black "Sai Han Thiha"]
[WhiteFideId "2203375"]
[BlackFideId "13012290"]
[WhiteElo "2338"]
[BlackElo "1954"]
[Result "1-0"]
[Round "07"]
[TimeControl "180+1"]
[Date "2022.12.14"]
[WhiteClock "0:00:48"]
[BlackClock "0:00:07"]

1. e4 {[%clk 0:03:00]}  c6 {[%clk 0:03:00]} 2. d4 {[%clk 0:03:00]}  d5 {[%clk 0:03:00]} 3. e5 {[%clk 0:03:00]}  Bf5 {[%clk 0:02:56]} 4. Nf3 {[%clk 0:03:00]}  e6 {[%clk 0:02:56]} 5. Be2 {[%clk 0:03:00]}  Nd7 {[%clk 0:02:56]} 6. O-O {[%clk 0:03:00]}  Ne7 {[%clk 0:02:57]} 7. Nh4 {[%clk 0:03:00]}  c5 {[%clk 0:02:42]} 8. c3 {[%clk 0:03:01]}  h6 {[%clk 0:02:29]} 9. Nxf5 {[%clk 0:02:59]}  Nxf5 {[%clk 0:02:29]} 10. Be3 {[%clk 0:02:43]}  Qb6 {[%clk 0:02:27]} 11. Nd2 {[%clk 0:02:40]}  cxd4 {[%clk 0:02:25]} 12. cxd4 {[%clk 0:02:39]}  Nxd4 {[%clk 0:02:22]} 13. Kh1 {[%clk 0:02:29]}  Bc5 {[%clk 0:01:46]} 14. b4 {[%clk 0:02:21]}  Qxb4 {[%clk 0:01:46]} 15. Rb1 {[%clk 0:02:17]}  Qa3 {[%clk 0:01:35]} 16. Rxb7 {[%clk 0:02:05]}  Nxe2 {[%clk 0:01:34]} 17. Qxe2 {[%clk 0:01:58]}  Rd8 {[%clk 0:01:17]} 18. Qb5 {[%clk 0:01:42]}  a6 {[%clk 0:00:59]} 19. Qc6 {[%clk 0:01:30]}  Bxe3 {[%clk 0:00:29]} 20. fxe3 {[%clk 0:01:31]}  Qc5 {[%clk 0:00:24]} 21. Qa4 {[%clk 0:01:16]}  Qe7 {[%clk 0:00:16]} 22. Rc1 {[%clk 0:01:05]}  O-O {[%clk 0:00:16]} 23. Rcc7 {[%clk 0:01:04]}  Nc5 {[%clk 0:00:14]} 24. Qd4 {[%clk 0:00:51]}  Qh4 {[%clk 0:00:07]} 25. Qxh4 {[%clk 0:00:48]} 1-0


[Site "https://www.chess.com"]

[Event "Titled Tuesday Blitz December 13 Early 2022"]
[White "Lauridsen, Jesper Morch"]
[Black "Miszler, Levente"]
[WhiteFideId "1401890"]
[BlackFideId "763276"]
[WhiteElo "2293"]
[BlackElo "2176"]
[Result "0-1"]
[Round "07"]
[TimeControl "180+1"]
[Date "2022.12.14"]
[WhiteClock "0:00:06"]
[BlackClock "0:01:32"]

1. e4 {[%clk 0:03:00]}  e6 {[%clk 0:02:59]} 2. d4 {[%clk 0:02:56]}  d5 {[%clk 0:02:59]} 3. e5 {[%clk 0:02:56]}  f6 {[%clk 0:02:58]} 4. Nf3 {[%clk 0:02:55]}  fxe5 {[%clk 0:02:56]} 5. Nxe5 {[%clk 0:02:55]}  Nf6 {[%clk 0:02:55]} 6. Bg5 {[%clk 0:02:52]}  Bd6 {[%clk 0:02:55]} 7. Bd3 {[%clk 0:02:48]}  O-O {[%clk 0:02:55]} 8. Qf3 {[%clk 0:02:30]}  c5 {[%clk 0:02:53]} 9. Qh3 {[%clk 0:02:29]}  h6 {[%clk 0:02:43]} 10. Bxh6 {[%clk 0:02:23]}  gxh6 {[%clk 0:02:43]} 11. Qg3+ {[%clk 0:02:05]}  Kh8 {[%clk 0:02:36]} 12. Qg6 {[%clk 0:01:25]}  Qe7 {[%clk 0:02:21]} 13. Qxh6+ {[%clk 0:01:12]}  Kg8 {[%clk 0:02:19]} 14. Ng6 {[%clk 0:00:40]}  Qg7 {[%clk 0:02:19]} 15. Qxg7+ {[%clk 0:00:36]}  Kxg7 {[%clk 0:02:20]} 16. Nxf8 {[%clk 0:00:37]}  Bxf8 {[%clk 0:02:20]} 17. dxc5 {[%clk 0:00:35]}  Bxc5 {[%clk 0:02:20]} 18. Nd2 {[%clk 0:00:34]}  Nc6 {[%clk 0:02:20]} 19. Nf3 {[%clk 0:00:34]}  e5 {[%clk 0:02:19]} 20. Be2 {[%clk 0:00:29]}  e4 {[%clk 0:02:19]} 21. Nd2 {[%clk 0:00:27]}  Be6 {[%clk 0:02:15]} 22. Nb3 {[%clk 0:00:27]}  Bb6 {[%clk 0:02:15]} 23. c3 {[%clk 0:00:26]}  Rf8 {[%clk 0:02:14]} 24. f3 {[%clk 0:00:26]}  Re8 {[%clk 0:02:06]} 25. O-O-O {[%clk 0:00:24]}  Bf5 {[%clk 0:02:02]} 26. g4 {[%clk 0:00:23]}  Be3+ {[%clk 0:02:01]} 27. Kb1 {[%clk 0:00:21]}  exf3+ {[%clk 0:02:00]} 28. Bd3 {[%clk 0:00:21]}  Bxd3+ {[%clk 0:01:57]} 29. Rxd3 {[%clk 0:00:21]}  Nxg4 {[%clk 0:01:56]} 30. Rxd5 {[%clk 0:00:18]}  f2 {[%clk 0:01:53]} 31. Nd4 {[%clk 0:00:10]}  Nxd4 {[%clk 0:01:48]} 32. cxd4 {[%clk 0:00:10]}  Nxh2 {[%clk 0:01:47]} 33. Rf5 {[%clk 0:00:10]}  f1=Q+ {[%clk 0:01:44]} 34. Rfxf1 {[%clk 0:00:10]}  Nxf1 {[%clk 0:01:45]} 35. Rxf1 {[%clk 0:00:10]}  Bxd4 {[%clk 0:01:45]} 36. Rd1 {[%clk 0:00:10]}  Rd8 {[%clk 0:01:42]} 37. Kc2 {[%clk 0:00:11]}  Bf6 {[%clk 0:01:42]} 38. Rg1+ {[%clk 0:00:10]}  Kf7 {[%clk 0:01:42]} 39. b4 {[%clk 0:00:10]}  Rc8+ {[%clk 0:01:42]} 40. Kb3 {[%clk 0:00:10]}  Ke6 {[%clk 0:01:42]} 41. Rg3 {[%clk 0:00:09]}  Be5 {[%clk 0:01:41]} 42. Rf3 {[%clk 0:00:09]}  Rc7 {[%clk 0:01:39]} 43. a4 {[%clk 0:00:09]}  Bd6 {[%clk 0:01:37]} 44. b5 {[%clk 0:00:08]}  Rf7 {[%clk 0:01:35]} 45. Re3+ {[%clk 0:00:08]}  Kd7 {[%clk 0:01:35]} 46. a5 {[%clk 0:00:08]}  Rf5 {[%clk 0:01:33]} 47. Ka4 {[%clk 0:00:06]}  Rf4+ {[%clk 0:01:33]} 48. Kb3 {[%clk 0:00:06]}  Rb4+ {[%clk 0:01:32]} 0-1


[Site "https://www.chess.com"]

[Event "Titled Tuesday Blitz December 13 Early 2022"]
[White "Liu, Casper"]
[Black "Ljukin, Sergei"]
[WhiteFideId "1454153"]
[BlackFideId "14102200"]
[WhiteElo "2217"]
[BlackElo "2312"]
[Result "1-0"]
[Round "07"]
[TimeControl "180+1"]
[Date "2022.12.14"]
[WhiteClock "0:00:07"]
[BlackClock "0:00:08"]

1. b3 {[%clk 0:03:00]}  e5 {[%clk 0:02:57]} 2. Bb2 {[%clk 0:03:01]}  Nc6 {[%clk 0:02:56]} 3. Nf3 {[%clk 0:03:01]}  e4 {[%clk 0:02:55]} 4. Nd4 {[%clk 0:03:00]}  Nxd4 {[%clk 0:02:55]} 5. Bxd4 {[%clk 0:03:01]}  d5 {[%clk 0:02:56]} 6. g3 {[%clk 0:03:00]}  c5 {[%clk 0:02:56]} 7. Bb2 {[%clk 0:03:01]}  Nf6 {[%clk 0:02:56]} 8. Bg2 {[%clk 0:03:01]}  Bd6 {[%clk 0:02:56]} 9. O-O {[%clk 0:03:02]}  O-O {[%clk 0:02:57]} 10. d3 {[%clk 0:03:02]}  Bf5 {[%clk 0:02:56]} 11. Nc3 {[%clk 0:02:59]}  Qe7 {[%clk 0:02:54]} 12. dxe4 {[%clk 0:02:48]}  dxe4 {[%clk 0:02:53]} 13. Nd5 {[%clk 0:02:45]}  Nxd5 {[%clk 0:02:50]} 14. Qxd5 {[%clk 0:02:46]}  Bg6 {[%clk 0:02:40]} 15. e3 {[%clk 0:02:38]}  Rad8 {[%clk 0:02:40]} 16. Qc4 {[%clk 0:02:36]}  a6 {[%clk 0:02:28]} 17. a4 {[%clk 0:02:32]}  Kh8 {[%clk 0:02:20]} 18. Rad1 {[%clk 0:02:30]}  f5 {[%clk 0:02:19]} 19. Qc3 {[%clk 0:02:15]}  b5 {[%clk 0:01:46]} 20. Qa5 {[%clk 0:01:37]}  Bh5 {[%clk 0:01:29]} 21. Ra1 {[%clk 0:01:24]}  Qb7 {[%clk 0:00:59]} 22. axb5 {[%clk 0:01:19]}  axb5 {[%clk 0:00:58]} 23. Qa7 {[%clk 0:01:00]}  Rb8 {[%clk 0:00:51]} 24. Ra6 {[%clk 0:00:54]}  Be7 {[%clk 0:00:43]} 25. Be5 {[%clk 0:00:53]}  Qxa7 {[%clk 0:00:34]} 26. Rxa7 {[%clk 0:00:54]}  Rbe8 {[%clk 0:00:35]} 27. Rfa1 {[%clk 0:00:42]}  c4 {[%clk 0:00:22]} 28. Bf1 {[%clk 0:00:36]}  Rf7 {[%clk 0:00:18]} 29. bxc4 {[%clk 0:00:34]}  Bc5 {[%clk 0:00:18]} 30. Ra8 {[%clk 0:00:30]}  Re7 {[%clk 0:00:16]} 31. Bd4 {[%clk 0:00:20]}  Bxd4 {[%clk 0:00:15]} 32. exd4 {[%clk 0:00:21]}  bxc4 {[%clk 0:00:15]} 33. Bxc4 {[%clk 0:00:21]}  h6 {[%clk 0:00:14]} 34. Bb3 {[%clk 0:00:16]}  f4 {[%clk 0:00:14]} 35. c4 {[%clk 0:00:15]}  Bf3 {[%clk 0:00:13]} 36. d5 {[%clk 0:00:12]}  Kh7 {[%clk 0:00:13]} 37. Bc2 {[%clk 0:00:12]}  Rxa8 {[%clk 0:00:13]} 38. Rxa8 {[%clk 0:00:11]}  Rb7 {[%clk 0:00:13]} 39. Ra2 {[%clk 0:00:07]}  Kg8 {[%clk 0:00:10]} 40. c5 {[%clk 0:00:07]}  Rb5 {[%clk 0:00:10]} 41. c6 {[%clk 0:00:06]}  Rc5 {[%clk 0:00:09]} 42. d6 {[%clk 0:00:05]}  Rxc6 {[%clk 0:00:09]} 43. d7 {[%clk 0:00:05]}  Rd6 {[%clk 0:00:09]} 44. Ra8+ {[%clk 0:00:06]}  Kf7 {[%clk 0:00:08]} 45. d8=Q {[%clk 0:00:07]}  Rxd8 {[%clk 0:00:08]} 46. Rxd8 {[%clk 0:00:07]} 1-0


[Site "https://www.chess.com"]

[Event "Titled Tuesday Blitz December 13 Early 2022"]
[White "Makhmudov, Shukhrat"]
[Black "Redzisz, Michal"]
[WhiteFideId "14200775"]
[BlackFideId "21816107"]
[WhiteElo "2135"]
[BlackElo "2136"]
[Result "0-1"]
[Round "07"]
[TimeControl "180+1"]
[Date "2022.12.14"]
[WhiteClock "0:00:01"]
[BlackClock "0:00:19"]

1. e4 {[%clk 0:02:59]}  c5 {[%clk 0:02:58]} 2. Nf3 {[%clk 0:02:59]}  e6 {[%clk 0:02:58]} 3. c3 {[%clk 0:02:58]}  d5 {[%clk 0:02:56]} 4. e5 {[%clk 0:02:58]}  d4 {[%clk 0:02:55]} 5. cxd4 {[%clk 0:02:54]}  cxd4 {[%clk 0:02:55]} 6. Bd3 {[%clk 0:02:54]}  Nc6 {[%clk 0:02:53]} 7. O-O {[%clk 0:02:54]}  Nge7 {[%clk 0:02:49]} 8. Re1 {[%clk 0:02:51]}  Ng6 {[%clk 0:02:44]} 9. Bxg6 {[%clk 0:02:34]}  hxg6 {[%clk 0:02:42]} 10. d3 {[%clk 0:02:34]}  Be7 {[%clk 0:02:35]} 11. Nbd2 {[%clk 0:02:34]}  O-O {[%clk 0:02:23]} 12. Ne4 {[%clk 0:02:28]}  b6 {[%clk 0:02:18]} 13. Bf4 {[%clk 0:02:13]}  Bb7 {[%clk 0:02:13]} 14. a3 {[%clk 0:02:04]}  Rc8 {[%clk 0:02:04]} 15. Rc1 {[%clk 0:02:03]}  Qd7 {[%clk 0:01:58]} 16. Nfg5 {[%clk 0:01:55]}  Na5 {[%clk 0:01:38]} 17. Qg4 {[%clk 0:01:32]}  Bxe4 {[%clk 0:01:38]} 18. Nxe4 {[%clk 0:01:29]}  Nb3 {[%clk 0:01:32]} 19. Rb1 {[%clk 0:01:21]}  Nc5 {[%clk 0:01:29]} 20. Nxc5 {[%clk 0:00:52]}  Rxc5 {[%clk 0:01:30]} 21. Rbc1 {[%clk 0:00:46]}  Rfc8 {[%clk 0:01:20]} 22. Qf3 {[%clk 0:00:39]}  g5 {[%clk 0:01:06]} 23. Bd2 {[%clk 0:00:25]}  Rxc1 {[%clk 0:00:59]} 24. Rxc1 {[%clk 0:00:23]}  Rxc1+ {[%clk 0:01:00]} 25. Bxc1 {[%clk 0:00:23]}  Qc7 {[%clk 0:00:53]} 26. Bd2 {[%clk 0:00:20]}  Qc2 {[%clk 0:00:51]} 27. Qe2 {[%clk 0:00:14]}  Qxb2 {[%clk 0:00:44]} 28. h4 {[%clk 0:00:10]}  gxh4 {[%clk 0:00:40]} 29. a4 {[%clk 0:00:09]}  Qa1+ {[%clk 0:00:39]} 30. Kh2 {[%clk 0:00:08]}  Qxa4 {[%clk 0:00:37]} 31. Qe4 {[%clk 0:00:07]}  Qd7 {[%clk 0:00:32]} 32. Qa8+ {[%clk 0:00:04]}  Kh7 {[%clk 0:00:33]} 33. Qe4+ {[%clk 0:00:04]}  g6 {[%clk 0:00:33]} 34. Qf4 {[%clk 0:00:04]}  Kg8 {[%clk 0:00:24]} 35. Qh6 {[%clk 0:00:04]}  Qd5 {[%clk 0:00:22]} 36. Bf4 {[%clk 0:00:01]}  a5 {[%clk 0:00:19]} 0-1


[Site "https://www.chess.com"]